[Event "Vojvodina Open 2024-A 2024"]
[Site "Novi Sad"]
[Date "2024.06.28"]
[Round "6.1"]
[White "Safarli, Eltaj"]
[Black "Sedlak, Nikola"]
[Result "1-0"]
[ECO "B10"]
[WhiteElo "2595"]
[BlackElo "2426"]
[Annotator "TA"]
[PlyCount "57"]
[EventDate "2024.06.03"]
[EventType "swiss"]
[EventCountry "SRB"]
[SourceTitle "playchess.com"]
[Source "ChessBase"]
[SourceQuality "1"]
[TimeControl "40/5400+30:900+30"]

{[%evp 9,57,25,21,12,27,32,23,23,2,5,45,53,58,57,77,13,49,15,3,21,71,67,147,97,216,149,156,150,164,161,345,361,353,356,347,328,296,257,264,264,258,249,257,241,5381,1304,2277,2069,1680,1677]} 1. e4 {[%emt 0:00:02]} c6 {[%emt 0:02:22]} 2. Nf3 {[%emt 0:00:55]} d5 {[%emt 0:00:13]} 3. d3 {[%emt 0:00:11]} g6 {[%emt 0:01:49]} 4. e5 {[%emt 0:00:25]} Bg7 {[%emt 0:01:29]} 5. d4 {[%emt 0:00:04]} f6 {[%emt 0:01:28]} 6. exf6 {[%emt 0:00:13]} Nxf6 {[%emt 0:01:46][%cal Oc6c5]} 7. Be2 {[%emt 0:00:28]} O-O {[%emt 0:00:48]} 8. O-O {[%emt 0:00:06] White has an edge.} c5 {[%emt 0:03:35]} 9. dxc5 {[%emt 0:00:39]} Nc6 {[%emt 0:00:42]} 10. Nc3 {[%emt 0:01:47]} Kh8 {[%emt 0:02:47]} 11. Bg5 $36 {[%emt 0:02:27][%mdl 2048] White is more active.} Be6 {[%emt 0:00:56]} 12. Re1 {[%emt 0:10:10]} (12. a3 $16) 12... Ne4 {[%emt 0:07:42][%cal Of8f3]} 13. Be3 {[%emt 0:02:30] Nxe4 would now be deadly.} Nxc3 {[%emt 0:07:29]} 14. bxc3 {[%emt 0:00:17]} Bg8 {[%emt 0:00:45]} (14... Bxc3 $11 15. Nd4 Bxd4 16. Bxd4+ Kg8) 15. Rb1 {[%emt 0:05:56]} Bxc3 {[%emt 0:12:12]} (15... Qc7 $14) 16. Rxb7 {[%emt 0:03:07]} ({White should play} 16. Bb5 {[%cal Ob5c6] Black must now prevent Bxc6!} Bxe1 17. Bxc6 Bxf2+ 18. Bxf2 bxc6 19. Qd4+ Rf6 20. Bh4) 16... Bxe1 {[%emt 0:01:30]} (16... Rb8 $16 17. Rxb8 Qxb8) 17. Qxe1 $18 {[%emt 0:00:23] And now Bb5 would win.} d4 {[%emt 0:02:34]} 18. Qa1 {[%emt 0:04:18][%cal Rf3d4] White is more active.} Bd5 {[%emt 0:11:30]} (18... e5 19. Nxe5 (19. Bh6 Bd5 $16) 19... Rc8 20. Nxc6 Rxc6 21. Bxd4+ (21. Qxd4+ Qf6 $18) (21. Rb8 Be6 $18) 21... Rff6 22. Rb8 $18 (22. Bxf6+ Qxf6 23. Qxf6+ Rxf6 $18)) 19. Nxd4 {[%emt 0:01:50]} Kg8 $2 {[%emt 0:01:54]} (19... Nxd4 {might work better.} 20. Qxd4+ Kg8) 20. Nxc6 {[%emt 0:06:06]} Bxc6 {[%emt 0:00:06] [#] Black is weak on the dark squares} 21. Rxe7 {[%emt 0:04:13][%mdl 512]} Rf7 {[%emt 0:00:06] Dodges Qg7+} (21... Qxe7 $2 {is the wrong capture.} 22. Bc4+ Rf7 23. Bh6 $18 (23. Bxf7+ $2 {too greedy.} Kxf7 24. Qc3 Re8 $19) (23. Bxf7+ $2 Kxf7 24. Qc3 Re8 $19)) 22. Rxf7 {[%emt 0:08:44]} Kxf7 {[%emt 0:00:09]} 23. Bc4+ {[%emt 0:00:52]} Bd5 {[%emt 0:00:21]} 24. Qd4 {[%emt 0:00:15]} Bxc4 {[%emt 0:00:22]} 25. Qxc4+ {[%emt 0:00:04]} Kg7 {[%emt 0:00:26]} 26. Bd4+ {[%emt 0:00:41]} Kh6 $2 {[%emt 0:00:23] [#]} (26... Kf8 27. h4 Rc8) 27. h4 $1 {[%emt 0:01:26]} Qe7 {[%emt 0:01:27]} (27... Rb8 28. Be5) 28. Be3+ {[%emt 0:01:33]} Kg7 {[%emt 0:00:06]} 29. Qd4+ {[%emt 0:00:13] Weighted Error Value: White=0.15 (very precise) /Black=0.33.  Mistake:       	White=3     	Black=5      Inaccurate:     	White=2     	Black=3      OK:         	White=9     	Black=3      Best:        	---       	Black=4} 1-0

[Event "Vojvodina Open 2024-A 2024"]
[Site "Novi Sad"]
[Date "2024.06.28"]
[Round "6.2"]
[White "Narayanan, Srinath"]
[Black "Manish Anto Cristiano F"]
[Result "0-1"]
[ECO "E54"]
[WhiteElo "2533"]
[BlackElo "2307"]
[Annotator "TA"]
[PlyCount "120"]
[EventDate "2024.06.03"]
[EventType "swiss"]
[EventCountry "SRB"]
[SourceTitle "playchess.com"]
[Source "ChessBase"]
[SourceQuality "1"]
[TimeControl "40/5400+30:900+30"]

{[%evp 23,120,0,31,25,21,27,32,29,35,35,12,-32,0,-45,-56,-94,-99,-91,-69,-85,-93,-79,-77,-91,-79,-103,-103,-164,-188,-317,-323,-328,-322,-410,-407,-418,-429,-621,-616,-648,-325,-318,-327,-367,-314,-650,-583,-702,-740,-1004,-706,-744,-742,-652,-413,-431,-651,-647,-647,-629,-623,-591,-556,-500,-487,-1503,-1423,-1198,-1106,-1050,-1113,-1145,-1118,-1052,-1022,-1939,-1267,-1730,-1498,-5302,-5302,-2009,-1712,-29989,-29990,-29993,-29994,-29994,-29991,-29991,-29992,-29992,-29993,-29995,-29996,-29996,-29997,-29997,-29997]} 1. d4 {[%emt 0:00:50]} Nf6 {[%emt 0:01:00]} 2. c4 {[%emt 0:00:04]} e6 {[%emt 0:00:12]} 3. Nc3 {[%emt 0:00:52]} Bb4 {[%emt 0:00:21]} 4. e3 {[%emt 0:00:10]} O-O {[%emt 0:00:31]} 5. Bd3 {[%emt 0:00:06]} d5 {[%emt 0:01:00]} 6. Nf3 {[%emt 0:00:08]} c5 {[%emt 0:00:07]} 7. O-O {[%emt 0:00:08]} cxd4 {[%emt 0:00:34]} 8. exd4 {[%emt 0:00:16]} dxc4 {[%emt 0:00:07]} 9. Bxc4 {[%emt 0:00:03]} b6 {[%emt 0:00:09]} 10. Bd3 {[%emt 0:01:17]} Bb7 {[%emt 0:00:39]} 11. a3 {[%emt 0:00:26]} Bxc3 {[%emt 0:05:08]} 12. bxc3 {[%emt 0:00:02]} Qc7 {[%emt 0:00:20]} 13. c4 {[%emt 0:00:22]} Nbd7 {[%emt 0:01:15]} 14. Re1 {[%emt 0:03:15]} Ba6 {[%emt 0:05:39]} 15. Ne5 {[%emt 0:11:16] White is slightly better.} Nxe5 {[%emt 0:05:22]} 16. dxe5 {[%emt 0:00:25]} Nd7 {[%emt 0:01:05]} 17. Bb2 {[%emt 0:07:05]} (17. Qh5 {seems wilder.} g6 18. Qh4 Nxe5 19. Be4) 17... Rfd8 {[%emt 0:05:37][%cal Od7c5]} 18. Re3 {[%emt 0:05:23][%cal Od3h7]} (18. Bxh7+ $5 Kxh7 19. Qh5+ Kg8 20. Re3 $11) 18... g6 {[%emt 0:06:58][%cal Od7c5]} (18... Bxc4 $6 19. Qc2 Rac8 20. Bxh7+ Kf8 21. Rg3 $16) 19. Qe2 {[%emt 0:11:17]} Rac8 {[%emt 0:02:50]} 20. Rc1 {[%emt 0:02:40]} Nc5 {[%emt 0:09:50]} 21. Bc2 {[%emt 0:02:27]} Nb7 {[%emt 0:02:22]} 22. h4 {[%emt 0:06:13]} Qe7 {[%emt 0:04:46]} 23. Re4 {[%emt 0:05:44]} Na5 {[%emt 0:02:31][%cal Ra5c4]} 24. Ba4 {[%emt 0:06:40]} Rc5 {[%emt 0:04:03] Black is more active.} 25. Qg4 {[%emt 0:14:31]} (25. Bb5 $17 {keeps fighting.} Bxb5 26. cxb5) 25... Nxc4 $1 $19 {[%emt 0:05:18]} 26. Rexc4 {[%emt 0:01:57]} (26. Rcxc4 Bxc4 27. Rxc4 b5 28. Bxb5 (28. Rxc5 $2 Qxc5 29. Qg5 Rd3 $19) 28... Rxb5 $19) (26. Bd4 {might work better.} Rxd4 27. Rxd4) 26... Bxc4 {[%emt 0:00:09]} 27. Rxc4 {[%emt 0:00:04]} b5 {[%emt 0:00:16]} 28. Rb4 {[%emt 0:14:13]} (28. Rxc5 Qxc5 29. Bxb5 Qxb5) 28... bxa4 {[%emt 0:02:48]} 29. h5 {[%emt 0:00:06]} a5 {[%emt 0:02:49]} 30. Rf4 {[%emt 0:00:31]} (30. Rxa4 $142 Qb7 31. hxg6 Qxb2 (31... hxg6 $2 32. Bd4 $19) 32. gxf7+ Kh8 33. Qxe6 Qxe5 (33... Qa1+ $2 34. Kh2 $19) 34. Qxe5+ Rxe5 35. Rd4) 30... Rd2 {[%emt 0:04:55]} 31. hxg6 {[%emt 0:01:05]} fxg6 {[%emt 0:07:36]} (31... Rxb2 32. gxf7+ Kh8 33. Qg8#) 32. Bd4 {[%emt 0:00:02]} Rc4 {[%emt 0:00:44][%cal Od2a2]} 33. Kh2 {[%emt 0:00:16]} Qd7 {[%emt 0:01:44]} (33... Qxa3 34. Qxe6+ Kg7 35. Qd7+ (35. Qxc4 Qe7 36. e6+ Kh6 37. Bc3 Kh5 38. Bxd2 Qd8 39. Qe2+ Kh6 40. Rf7+ g5) 35... Kg8 36. Rf7) 34. Qf3 $2 {[%emt 0:02:15]} (34. Be3 Rxf4 35. Qxf4) 34... Rcxd4 {[%emt 0:03:19]} 35. Rf8+ {[%emt 0:00:35]} Kg7 {[%emt 0:00:06]} 36. Qf6+ {[%emt 0:00:02]} Kh6 {[%emt 0:00:07]} 37. Rf7 {[%emt 0:00:30]} Qd8 {[%emt 0:01:24]} 38. Re7 {[%emt 0:03:37]} Rg4 {[%emt 0:08:28] ...Qg8 would now be deadly.} 39. Kh3 {[%emt 0:01:26]} Rdd4 {[%emt 0:02:48]} 40. g3 {[%emt 0:00:00][%cal Of2f4] [#] Against Rh4+} Qa8 $1 {[%emt 0:00:00][%cal Ra8h1]} (40... Qg8 41. f3 Rg5 42. g4 $11) 41. Qg7+ {[%emt 0:06:16]} Kh5 {[%emt 0:03:33][%cal Ra8h1]} 42. Qxh7+ {[%emt 0:00:08]} Kg5 {[%emt 0:00:26]} 43. Rb7 {[%emt 0:00:16]} Qf8 {[%emt 0:03:57][%csl LRa3,LRf2][%cal Og4g3]} 44. Rf7 {[%emt 0:00:46]} (44. f4+ $142 Rdxf4 45. gxf4+ Rxf4 46. Qe7+ Qxe7 47. Rxe7) 44... Qxa3 {[%emt 0:01:54]} (44... Qh6+ 45. Qxh6+ Kxh6 46. f4 $19) 45. Kg2 {[%emt 0:04:49]} Qd3 {[%emt 0:05:04][%cal Og4g3]} 46. Rf3 {[%emt 0:01:21]} Rd7 {[%emt 0:00:30]} 47. Qh8 {[%emt 0:01:07]} Qe4 {[%emt 0:00:31][%cal Og4g3]} 48. Qf6+ {[%emt 0:00:19]} Kh6 {[%emt 0:00:12]} 49. Kh3 {[%emt 0:03:23]} Rg5 {[%emt 0:00:53]} 50. Qf8+ {[%emt 0:01:30] [#]} Rg7 $1 {[%emt 0:00:14][%cal Og5f5]} ({Worse is} 50... Kh7 51. Rf7+ Rxf7 52. Qxf7+ Kh8 (52... Kh6 53. Qf8+ Kh7 54. Qf7+ Kh8 55. Qf8+ Kh7 56. Qf7+ $11) 53. Qe8+ Kg7 54. Qe7+ Kg8 (54... Kh6 55. Qf8+ Kh7 56. Qf7+ Kh8 57. Qf6+ Kg8 58. Qd8+ Kf7 59. Qd7+ Kf8 60. Qd8+ Kf7 61. Qd7+ Kf8 62. Qd8+ Kf7 $11) 55. Qe8+ Kg7 56. Qe7+ Kh6 57. Qf8+ Kh7 58. Qf7+ Kh6 59. Qf8+ Kh7 60. Qe7+ (60. Qf7+ Kh8 $11) 60... Kh6 (60... Kg8 61. Qe8+ Kg7 $11) 61. Qf8+ $11) 51. Qh8+ {[%emt 0:00:14]} Rh7 {[%emt 0:00:05]} 52. Qf8+ {[%emt 0:00:18]} Kh5 {[%emt 0:00:06][%cal Og5f5] ( -> ...Rf5!)} 53. Qg8 {[%emt 0:02:32]} Rh6 {[%emt 0:00:10] Black mates.} 54. Qf7 {[%emt 0:00:39]} Rf5 {[%emt 0:00:19]} 55. Qe7 {[%emt 0:00:20]} Qg4+ {[%emt 0:00:24]} ({Inferior is} 55... Qxf3 56. Qh4#) 56. Kh2 {[%emt 0:00:11]} Rxf3 {[%emt 0:00:17]} 57. Kg2 {[%emt 0:00:05]} Rf5 {[%emt 0:03:21]} 58. f4 {[%emt 0:00:20]} Qe2+ {[%emt 0:00:44]} 59. Kg1 {[%emt 0:00:24]} Kg4 {[%emt 0:00:29]} 60. Qh7 {[%emt 0:00:48]} Qe3+ {[%emt 0:00:32] White did not feel at home in the position after the opening.   Weighted Error Value: White=0.48/Black=0.36.  Mistake:       	White=5     	---        Inaccurate:     	White=3     	Black=1      OK:         	White=7     	Black=13     Best:        	White=1     	Black=4      Strong:       	---       	Black=1} 0-1

[Event "Vojvodina Open 2024-A 2024"]
[Site "Novi Sad"]
[Date "2024.06.28"]
[Round "6.3"]
[White "Harshavardhan G B"]
[Black "Durucay, Uygar"]
[Result "1/2-1/2"]
[ECO "E42"]
[WhiteElo "2433"]
[BlackElo "2026"]
[Annotator "TA"]
[PlyCount "56"]
[EventDate "2024.06.03"]
[EventType "swiss"]
[EventCountry "SRB"]
[SourceTitle "playchess.com"]
[Source "ChessBase"]
[SourceQuality "1"]
[TimeControl "40/5400+30:900+30"]

{[%evp 19,56,35,45,45,51,43,30,17,26,23,22,47,27,29,27,17,15,30,135,134,162,95,183,187,169,101,116,114,152,158,169,178,157,64,55,52,46,22,59]} 1. d4 {[%emt 0:02:19]} Nf6 {[%emt 0:00:29]} 2. c4 {[%emt 0:00:22]} e6 {[%emt 0:00:10]} 3. Nc3 {[%emt 1:29:19]} Bb4 {[%emt 0:00:11]} 4. e3 {[%emt 0:00:00]} c5 {[%emt 0:00:17]} 5. Nge2 {[%emt 0:00:00]} d5 {[%emt 0:02:01]} 6. a3 {[%emt 0:00:00]} Bxc3+ {[%emt 0:00:07]} 7. Nxc3 {[%emt 0:00:00]} cxd4 {[%emt 0:00:12]} 8. exd4 {[%emt 0:00:00]} Nc6 {[%emt 0:00:40]} 9. c5 {[%emt 0:00:00]} O-O {[%emt 0:03:44]} 10. Bb5 {[%emt 0:00:00]} e5 {[%emt 0:00:55]} 11. dxe5 {[%emt 0:00:00]} Nxe5 {[%emt 0:00:18] [#] Strongly threatening ...d4.} 12. Qd4 {[%emt 0:00:00]} (12. Bf4 $5 Nc6 13. O-O $16) 12... Bd7 {[%emt 0:11:29] Hoping for ...Bxb5.} 13. O-O {[%emt 0:00:00] White has an edge.} (13. Qxe5 $2 {is the wrong capture.} Re8 $19) 13... Bxb5 {[%emt 0:00:38]} 14. Nxb5 {[%emt 0:00:00]} Nc6 {[%emt 0:00:38]} 15. Qd3 {[%emt 0:00:00]} Ne4 {[%emt 0:03:32]} 16. b4 {[%emt 0:06:30]} Ne5 17. Qd4 Nc6 {Excellent horsemanship.} 18. Qb2 Qh4 (18... a6 $11 19. Nd4 Qf6) 19. f3 $16 Nf6 20. Be3 (20. Nd6 $18) 20... Rad8 (20... a5 $16) 21. Qd2 h6 22. Bf4 (22. Nd6 $18) 22... Rd7 23. Rae1 a6 24. Nd6 d4 25. Nf5 Qh5 26. Qd3 {White is more active.} (26. g4 $16 Qh3 27. a4) 26... Qg6 $14 27. Rd1 Nd5 28. Bd6 {[%emt 0:00:00]} Re8 {Weighted Error Value: White=0.15 (very precise) /Black=0.21 (precise) .  Mistake:       	White=3     	Black=2      Inaccurate:     	---       	Black=2      OK:         	White=7     	Black=7      Best:        	---       	Black=1} 1/2-1/2

[Event "Vojvodina Open 2024-A 2024"]
[Site "Novi Sad"]
[Date "2024.06.28"]
[Round "6.4"]
[White "Tippa, Aswath Srisai"]
[Black "Kushagra Mohan"]
[Result "1/2-1/2"]
[ECO "A62"]
[WhiteElo "1647"]
[BlackElo "2367"]
[Annotator "RC"]
[PlyCount "68"]
[EventDate "2024.06.03"]
[EventType "swiss"]
[EventCountry "SRB"]
[SourceTitle "playchess.com"]
[Source "ChessBase"]
[SourceQuality "1"]
[TimeControl "40/5400+30:900+30"]

1. d4 {[%emt 0:00:36]} Nf6 {[%emt 0:01:54]} 2. c4 {[%emt 0:00:18]} e6 {[%emt 0:00:04]} 3. g3 {[%emt 0:00:18]} c5 {[%emt 0:00:03]} 4. d5 {[%emt 0:00:26]} exd5 {[%emt 0:00:20]} 5. cxd5 {[%emt 0:00:09]} d6 {[%emt 0:00:02]} 6. Bg2 {[%emt 0:00:08]} g6 {[%emt 0:00:05]} 7. Nc3 {[%emt 0:00:09]} Bg7 {[%emt 0:00:03]} 8. Nf3 {[%emt 0:00:12]} O-O {[%emt 0:00:04]} 9. O-O {[%emt 0:00:07]} Re8 {[%emt 0:00:01]} 10. Bf4 {[%emt 0:00:49]} h6 {[%emt 0:00:05]} 11. Qc1 {[%emt 0:00:16]} g5 {[%emt 0:00:03]} 12. Be3 {[%emt 0:00:05]} Bf5 {[%emt 0:00:13]} 13. h4 {[%emt 0:00:09]} g4 {[%emt 0:00:04]} 14. Nd2 {[%emt 0:00:05]} Rxe3 {[%emt 0:00:14]} 15. fxe3 {[%emt 0:00:08]} Bg6 {[%emt 0:00:10]} 16. Nc4 {[%emt 0:01:22]} Qe7 {[%emt 0:00:13]} 17. e4 {[%emt 0:02:13]} Nh5 {[%emt 0:00:32]} 18. Kh2 {[%emt 0:10:17]} Nd7 {[%emt 0:10:52]} 19. a4 {[%emt 0:02:36]} a6 {[%emt 0:01:13]} 20. Ra3 {[%emt 0:03:24]} Rb8 {[%emt 0:05:11]} 21. Rb3 {[%emt 0:01:45]} b6 {[%emt 0:00:34]} 22. Qe1 {[%emt 0:26:29]} Ne5 {[%emt 0:12:08]} 23. Ne3 {[%emt 0:01:37]} Qd7 {[%emt 0:05:48]} 24. Nf5 {[%emt 0:03:48]} b5 {[%emt 0:00:36]} 25. axb5 {[%emt 0:01:44]} axb5 {[%emt 0:00:04]} 26. Nxg7 {[%emt 0:02:19]} Kxg7 {[%emt 0:01:07]} 27. Nd1 {[%emt 0:01:31]} b4 {[%emt 0:01:06]} 28. Rd3 {[%emt 0:01:46]} c4 {[%emt 0:05:41]} 29. Rd2 {[%emt 0:02:44]} Qa7 {[%emt 0:01:51]} 30. Rc2 {[%emt 0:03:50]} Qd4 {[%emt 0:01:32]} 31. Rd2 {[%emt 0:04:33]} Qc5 {[%emt 0:00:16]} 32. Rc2 {[%emt 0:01:52]} Qd4 {[%emt 0:03:43]} 33. Rd2 {[%emt 0:00:19]} Qc5 {[%emt 0:00:29]} 34. Rc2 {[%emt 0:01:08]} Qd4 {[%emt 0:01:00]} 1/2-1/2

[Event "Vojvodina Open 2024-A 2024"]
[Site "Novi Sad"]
[Date "2024.06.28"]
[Round "6.5"]
[White "Bryakin, Mikhail"]
[Black "Gur, Ali"]
[Result "1/2-1/2"]
[ECO "E11"]
[WhiteElo "2469"]
[BlackElo "1968"]
[Annotator "TA"]
[PlyCount "74"]
[EventDate "2024.06.03"]
[EventType "swiss"]
[EventCountry "SRB"]
[SourceTitle "playchess.com"]
[Source "ChessBase"]
[SourceQuality "1"]
[TimeControl "40/5400+30:900+30"]

{[%evp 9,74,21,12,17,30,0,25,0,0,14,14,-39,-39,-35,-11,-21,-8,-37,-37,-64,-81,-67,-68,-67,-64,-109,-62,-98,-68,-70,-72,-83,-71,-65,-66,-75,-80,-80,-72,-199,-65,-55,-65,-95,-60,-108,-85,-200,-107,-108,-111,-122,-101,-97,-93,-94,-93,-181,-179,-162,-195,-190,-190,-185,-185,-295,-291]} 1. d4 {[%emt 0:03:19]} Nf6 {[%emt 0:00:05]} 2. c4 {[%emt 0:00:04]} e6 {[%emt 0:00:04]} 3. Nf3 {[%emt 0:00:05]} Bb4+ {[%emt 0:00:04]} 4. Bd2 {[%emt 0:00:07]} Qe7 {[%emt 0:00:04]} 5. g3 {[%emt 0:00:08]} Bxd2+ {[%emt 0:00:03]} 6. Nfxd2 {[%emt 0:00:07]} O-O {[%emt 0:00:36]} 7. Nc3 {[%emt 0:00:21]} d6 {[%emt 0:01:10]} 8. e3 {[%emt 0:01:16] White has an edge.} e5 {[%emt 0:00:09]} 9. d5 {[%emt 0:00:21]} a5 {[%emt 0:01:11]} 10. Rg1 {[%emt 0:02:00]} ({White should play} 10. e4 $11) 10... Na6 {[%emt 0:01:29]} 11. g4 {[%emt 0:00:16][%cal Bg3g4,Bg4g5][%mdl 32]} Nc5 {[%emt 0:00:34]} 12. g5 {[%emt 0:00:31]} Nfd7 {[%emt 0:00:12]} 13. Qh5 {[%emt 0:00:37]} f5 {[%emt 0:10:19]} 14. f3 {[%emt 0:04:11]} Nb6 {[%emt 0:04:12]} 15. Nb3 {[%emt 0:02:43]} Nxb3 {[%emt 0:04:20]} 16. axb3 {[%emt 0:00:03]} Bd7 {[%emt 0:00:15]} 17. Rg2 {[%emt 0:03:11]} Be8 {[%emt 0:01:26]} ({Black should try} 17... a4 $17 18. bxa4 Nxa4 19. Nxa4 Rxa4 (19... Bxa4 20. Rc1 $17) 20. Rxa4 Bxa4) 18. Qh4 $15 {[%emt 0:00:23]} Bg6 {[%emt 0:01:41]} 19. Qf2 {[%emt 0:01:40]} Nd7 {[%emt 0:01:25][%cal Bb6d7,Bd7c5,Bc5d3][%mdl 32]} 20. h4 {[%emt 0:00:35]} Nc5 {[%emt 0:00:15]} 21. Qc2 {[%emt 0:00:10]} Bh5 {[%emt 0:00:39]} 22. Kf2 {[%emt 0:00:35]} Qd7 {[%emt 0:01:41]} 23. Rh2 {[%emt 0:02:23]} c6 {[%emt 0:04:15]} 24. Bg2 {[%emt 0:02:21]} (24. Be2 $17) 24... e4 {[%emt 0:01:04]} (24... Qc7 $19 {Strongly threatening ...f4.} 25. Kf1 Kh8) 25. f4 {[%emt 0:00:23]} Nd3+ {[%emt 0:01:13]} 26. Kg3 {[%emt 0:00:12]} Qc7 {[%emt 0:01:19]} 27. dxc6 {[%emt 0:09:30]} (27. Na4 $15 {should be considered.}) 27... bxc6 $17 {[%emt 0:00:44]} 28. Na4 {[%emt 0:01:29]} (28. Bf1 $17 {was called for.}) 28... Rab8 {[%emt 0:02:04]} ({Better is} 28... Qa7 $19 29. Qd2 d5) 29. Bf1 {[%emt 0:04:40]} Qa7 $40 {[%emt 0:01:23][%mdl 128] Black goes for the king.} 30. c5 {[%emt 0:00:07]} Bf7 {[%emt 0:06:09]} (30... dxc5 31. Bxd3 exd3 32. Qxd3 $17) 31. Ra3 {[%emt 0:02:00]} dxc5 {[%emt 0:04:51][%cal Oc5c4] [#] And now ...c4! would win.} (31... Nxc5 32. Nxc5 Qxc5 33. Qxc5 dxc5 34. Rc2 Rxb3 35. Rxb3 (35. Rxa5 Rxe3+ 36. Kg2 c4 $17) (35. Rxc5 Rxb2 36. Raxa5 Bd5 $11) 35... Bxb3 36. Rxc5 $16) 32. Bxd3 {[%emt 0:01:34]} exd3 {[%emt 0:00:18]} 33. Qxc5 {[%emt 0:05:37]} (33. Qxd3 $17 {might work better.} Qe7 34. Qe2) 33... Qxc5 $19 {[%emt 0:00:35]} 34. Nxc5 {[%emt 0:00:01][%cal Oh2d2]} Rfe8 {[%emt 0:51:41]} 35. Rd2 {[%emt 0:04:44]} Rxe3+ {[%emt 0:00:00]} 36. Kf2 {[%emt 0:00:01]} Rh3 {[%emt 0:00:00] [#] ...Rh2+ would now be deadly.} 37. Nd7 {[%emt 0:07:14]} (37. Rxd3 {was necessary.} Rxh4 38. Rxa5) 37... Rb4 {[%emt 0:00:00][%mdl 32768] Weighted Error Value: White=0.34/Black=0.18 (very precise) .  Mistake:       	White=6     	Black=3      Inaccurate:     	White=5     	Black=2      OK:         	White=7     	Black=16     Best:        	White=6     	Black=1     . An unexpected result.} ({Weaker is} 37... Rxb3 38. Rxa5 Bd5 (38... Rxh4 39. Ra8+ $16) 39. Ra8+ Kf7 40. Nc5 $17) 1/2-1/2

[Event "Vojvodina Open 2024-A 2024"]
[Site "Novi Sad"]
[Date "2024.06.28"]
[Round "6.6"]
[White "Drazic, Sinisa"]
[Black "Pranav K P"]
[Result "1-0"]
[ECO "D73"]
[WhiteElo "2263"]
[BlackElo "2223"]
[Annotator "RC"]
[PlyCount "63"]
[EventDate "2024.06.03"]
[EventType "swiss"]
[EventCountry "SRB"]
[SourceTitle "playchess.com"]
[Source "ChessBase"]
[SourceQuality "1"]
[TimeControl "40/5400+30:900+30"]

1. Nf3 {[%emt 0:01:15]} Nf6 {[%emt 0:00:19]} 2. g3 {[%emt 0:00:08]} g6 {[%emt 0:01:56]} 3. Bg2 {[%emt 0:01:03]} Bg7 {[%emt 0:00:02]} 4. d4 {[%emt 0:00:18]} O-O {[%emt 0:01:13]} 5. O-O {[%emt 0:00:02]} d5 {[%emt 0:01:13]} 6. c4 {[%emt 0:00:06]} c6 {[%emt 0:00:23]} 7. Qb3 {[%emt 0:00:16]} b6 {[%emt 0:05:14]} 8. Nc3 {[%emt 0:01:38]} Bb7 {[%emt 0:04:07]} 9. Bf4 {[%emt 0:12:03]} Nh5 {[%emt 0:05:33]} 10. Be5 {[%emt 0:01:29]} f6 {[%emt 0:01:27]} 11. Bxb8 {[%emt 0:00:04]} Rxb8 {[%emt 0:00:28]} 12. cxd5 {[%emt 0:00:02]} cxd5 {[%emt 0:00:43]} 13. e4 {[%emt 0:00:05]} Ba6 {[%emt 0:12:51]} 14. Rfe1 {[%emt 0:07:34]} Bc4 {[%emt 0:01:29]} 15. Qa4 {[%emt 0:00:07]} a5 {[%emt 0:06:21]} 16. exd5 {[%emt 0:03:25]} b5 {[%emt 0:00:11]} 17. Qc2 {[%emt 0:00:13]} Rc8 {[%emt 0:04:36]} 18. Qd2 {[%emt 0:29:57]} b4 {[%emt 0:09:54]} 19. Nd1 {[%emt 0:00:17]} f5 {[%emt 0:02:20]} 20. Ne3 {[%emt 0:00:15]} Bxd5 {[%emt 0:00:46]} 21. Nxd5 {[%emt 0:00:23]} Qxd5 {[%emt 0:00:02]} 22. Rxe7 {[%emt 0:00:27]} Rfd8 {[%emt 0:01:43]} 23. b3 {[%emt 0:02:00]} Bxd4 {[%emt 0:07:07]} 24. Nxd4 {[%emt 0:00:15]} Qd6 {[%emt 0:02:20]} 25. Qe3 {[%emt 0:07:03]} Nf6 {[%emt 0:01:31]} 26. Re6 {[%emt 0:02:13]} Qxd4 {[%emt 0:00:07]} 27. Qxd4 {[%emt 0:00:03]} Rxd4 {[%emt 0:00:09]} 28. Rxf6 {[%emt 0:00:02]} Rd2 {[%emt 0:00:20]} 29. Rc6 {[%emt 0:00:11]} Re8 {[%emt 0:00:09]} 30. Bf1 {[%emt 0:00:02]} Ra8 {[%emt 0:00:10]} 31. Rc7 {[%emt 0:00:19]} Kf8 {[%emt 0:00:23]} 32. Rxh7 {[%emt 0:02:01]} 1-0